bitfinex/quotes_ETHUSD_20240715
["timestamp","ask_amount","ask_price","bid_price","bid_amount"]
[1721070373239,0.07186231,3400.3,3400.0,2.94114]
[1721070373468,2.52160645,3400.7,3400.0,2.94114]
[1721070373469,0.61445823,3400.6,3400.0,2.94114]
[1721070373674,0.07181583,3400.2,3400.0,2.94114]
[1721070373878,2.93715823,3400.8,3400.2,2.94094]
[1721070374062,0.61445823,3400.7,3400.2,2.94094]
[1721070374436,0.61426108,3400.7,3400.2,5.88187]
[1721070375033,0.61426108,3400.7,3400.3,2.9409]
[1721070375540,2.93696108,3400.8,3400.3,2.9409]
[1721070375743,7.91426108,3400.9,3400.5,2.94066]
[1721070375942,7.3,3400.9,3400.6,2.94058]
[1721070376591,0.06970661,3400.8,3400.6,2.94058]
[1721070377742,0.06970661,3400.8,3400.7,5.88114]
[1721070377981,1.22852217,3401.4,3401.0,2.94022]
[1721070377982,0.61426108,3401.4,3401.0,2.94022]
[1721070378292,2.16204057,3401.4,3400.9,2.94039]
[1721070378882,5.1597597,3401.4,3400.4,2.799]
[1721070379191,0.61426108,3401.2,3400.5,2.94067]
[1721070379592,0.61426108,3401.1,3400.6,2.94064]
[1721070379796,0.61426108,3401.2,3400.7,2.94053]
[1721070379945,1.02495835,3401.2,3400.7,2.94053]
[1721070380160,0.06956243,3401.1,3400.7,2.94053]
[1721070380785,0.06956243,3401.1,3400.5,2.94067]
[1721070382080,0.06956243,3401.1,3400.7,2.94055]
[1721070382478,0.61400175,3401.2,3400.7,2.94055]
[1721070382692,0.06951597,3401.0,3400.7,2.94055]
[1721070382892,0.06956243,3401.1,3401.0,2.94031]
[1721070383094,0.06956243,3401.1,3400.8,2.799]
[1721070383095,0.61400175,3401.5,3401.1,2.94019]
[1721070383411,0.61400175,3401.5,3400.8,2.799]
[1721070383412,2.15669754,3401.5,3400.9,2.94032]
[1721070383578,0.61400175,3401.4,3400.9,2.94032]
[1721070383777,0.68371572,3401.4,3401.1,2.94021]
[1721070383981,0.06971397,3401.4,3401.1,2.94021]
[1721070384215,0.61423839,3401.6,3401.1,2.94021]
[1721070384378,0.06975462,3401.3,3401.1,2.94021]
[1721070384582,0.61423839,3401.6,3401.1,2.94021]
[1721070385780,0.61423839,3401.6,3401.1,2.94014]
[1721070385999,0.61423839,3401.6,3401.3,2.94]
[1721070386885,0.61423839,3401.7,3401.3,2.94]
[1721070387114,0.61423839,3401.6,3401.3,2.94]
[1721070387478,0.61423839,3401.8,3401.6,2.93979]
[1721070387810,0.61423839,3401.8,3401.5,2.93987]
[1721070388019,0.61423839,3401.8,3401.6,2.93976]
[1721070388219,0.61423839,3401.7,3401.6,2.93976]
[1721070388514,0.61423839,3401.8,3401.6,2.93976]
[1721070389508,8.22135759,3402.0,3401.6,2.93976]
[1721070389509,0.61423839,3401.9,3401.6,2.93976]
[1721070389811,0.61423839,3401.8,3401.7,2.93967]
[1721070390023,8.22135759,3402.0,3401.8,2.93962]
[1721070390024,0.61423839,3402.0,3401.8,2.93962]
[1721070390532,0.61423839,3402.0,3401.9,2.93953]
[1721070390713,0.61491399,3402.3,3402.1,2.93936]
[1721070390875,0.61491399,3402.3,3402.1,2.9393]
[1721070391073,0.92237099,3402.5,3402.1,2.9393]
[1721070391074,0.61491399,3402.5,3402.1,2.9393]
[1721070391823,0.61491399,3402.5,3402.0,5.73843]
[1721070392122,0.61491399,3402.5,3402.0,2.93943]
[1721070392123,2.14381429,3402.5,3402.0,2.93943]
[1721070392627,2.14381429,3402.5,3401.6,2.799]
[1721070392628,3.55406399,3402.4,3401.6,5.73871]
[1721070392818,0.61491399,3402.3,3401.7,2.93968]
[1721070393182,3.55406399,3402.4,3401.7,2.93968]
[1721070393396,0.61491399,3402.3,3401.7,2.93968]
[1721070393718,0.61491399,3402.3,3401.6,2.93978]
[1721070393719,5.30519,3402.3,3401.6,2.93978]
[1721070393932,5.92010399,3402.3,3401.6,2.93978]
[1721070394430,5.92010399,3402.3,3401.7,2.9397]
[1721070394431,5.30519,3402.3,3401.7,2.9397]
[1721070394602,2.366,3402.3,3401.7,2.9397]
[1721070396543,2.366,3402.3,3401.9,2.93951]
[1721070397140,0.61491399,3402.6,3402.1,2.93932]
[1721070397344,10.40021399,3402.7,3402.1,2.93932]
[1721070397542,7.3,3402.7,3402.1,2.93932]
[1721070398883,7.3,3402.7,3401.5,2.93985]
[1721070398884,2.3312,3402.4,3401.7,2.93962]
[1721070400536,11.6180804,3402.7,3401.9,2.93952]
[1721070400873,11.6180804,3402.7,3401.9,5.879]
[1721070401245,2.93893,3402.6,3401.9,2.93948]
[1721070401681,2.93902,3402.5,3401.9,2.93948]
[1721070401831,2.93902,3402.5,3401.7,2.93966]
[1721070402271,2.93902,3402.5,3401.8,2.93958]
[1721070402476,2.93902,3402.5,3401.7,2.93966]
[1721070403534,2.93902,3402.5,3401.9,2.93953]
[1721070403737,1.88870387,3402.5,3401.9,2.93953]
[1721070403935,7.3,3402.7,3402.1,2.93932]
[1721070404237,7.3,3402.7,3402.2,2.93923]
[1721070405636,7.3,3402.7,3402.0,5.87875]
[1721070406034,7.3,3402.7,3402.1,2.93934]
[1721070406275,7.3,3402.7,3402.0,2.93937]
[1721070406276,7.3,3402.7,3402.2,2.93926]
[1721070407465,7.3,3402.7,3402.2,5.87847]
[1721070408047,7.3,3402.7,3402.3,2.93918]
[1721070408967,2.93868,3402.9,3402.3,2.93918]
[1721070409156,2.93868,3402.9,3402.2,2.93921]
[1721070409157,2.93877,3402.8,3402.2,2.93921]
[1721070409355,2.93877,3402.8,3402.0,2.93938]
[1721070409785,2.93877,3402.8,3402.2,2.93921]
[1721070411667,2.93884,3402.7,3402.0,2.93938]
[1721070411993,2.93884,3402.7,3402.0,5.87876]
[1721070412193,2.93884,3402.7,3402.1,2.93929]
[1721070412489,2.4987,3402.6,3402.1,2.93929]
[1721070413396,2.4987,3402.6,3402.2,2.93926]
[1721070414700,2.4987,3402.6,3402.0,2.93938]
[1721070414701,3.0411481,3403.0,3402.0,2.799]
[1721070414988,3.0411481,3403.0,3402.4,5.87802]
[1721070414989,2.4275,3403.0,3402.4,5.87802]
[1721070415420,5.36608,3403.0,3402.4,2.93901]
[1721070415618,5.36608,3403.0,3402.2,2.9392]
[1721070415619,7.07994602,3403.0,3402.2,2.9392]
[1721070415804,7.69359412,3403.0,3402.2,2.9392]
[1721070415978,7.69359412,3403.0,3402.0,2.799]
[1721070415979,0.05767913,3402.9,3402.0,5.73842]
[1721070416181,2.93884,3402.7,3402.0,5.8788]
[1721070416380,2.93884,3402.7,3402.0,2.93938]
[1721070416680,2.4275,3402.6,3401.5,5.93981]
[1721070416873,2.93923,3402.3,3401.5,5.9398]
[1721070417384,3.61040723,3402.5,3401.6,2.93974]
[1721070417919,2.9391,3402.4,3401.7,2.9397]
[1721070418127,5.9800981,3402.6,3401.9,2.93946]
[1721070418307,0.6136481,3402.5,3401.9,2.93948]
[1721070418497,0.6136481,3402.4,3401.9,2.93948]
[1721070418686,0.6136481,3402.5,3401.9,2.93948]
[1721070418887,0.6136481,3402.5,3401.9,5.87896]
[1721070419126,0.6136481,3402.5,3402.0,2.93942]
[1721070419721,0.6136481,3402.5,3401.8,2.93959]
[1721070419892,6.76946767,3402.6,3401.8,2.93959]
[1721070419893,0.61457262,3402.4,3401.8,2.93959]
[1721070420083,0.61457262,3402.4,3401.7,2.93966]
[1721070420278,3.55382262,3402.3,3401.5,3.0]
[1721070420478,2.93925,3402.3,3401.5,3.0]
[1721070420782,3.55382262,3402.3,3401.6,2.93979]
[1721070421012,3.55382262,3402.3,3401.2,2.799]
[1721070421013,2.4275,3402.0,3401.2,2.94006]
[1721070421214,3.63563907,3401.9,3401.2,2.94007]
[1721070421544,3.04207262,3402.0,3401.3,2.94001]
[1721070421705,0.61457262,3401.9,3401.3,2.94001]
[1721070422718,0.61457262,3401.8,3401.3,2.94001]
[1721070422934,0.61457262,3401.7,3401.3,2.94001]
[1721070423111,0.61457262,3401.8,3401.3,2.94001]
[1721070423441,0.61457262,3401.7,3401.3,2.94001]
[1721070423736,0.61457262,3401.7,3401.4,2.93995]
[1721070423940,0.61457262,3401.8,3401.4,2.93995]
[1721070424643,0.61457262,3401.7,3401.4,2.93995]
[1721070424832,0.61457262,3401.8,3401.4,2.93995]
[1721070425407,0.61457262,3401.8,3401.7,2.9397]
[1721070426018,0.61457262,3402.0,3401.7,2.9397]
[1721070426421,0.61457262,3401.9,3401.7,2.9397]
[1721070427111,0.92185894,3401.9,3401.7,2.9397]
[1721070427301,0.61580059,3401.8,3401.7,2.9397]
[1721070427528,0.92185894,3401.8,3401.7,2.9397]
[1721070428518,1.23243998,3401.9,3401.5,5.87967]
[1721070428814,0.61624089,3401.6,3401.5,2.9398]
[1721070429554,0.92436134,3401.7,3401.5,2.9398]
[1721070430111,0.92436134,3401.6,3401.5,2.9398]
[1721070430424,0.92436134,3401.6,3401.4,2.93995]
[1721070430621,0.92436134,3401.5,3401.4,2.93995]
[1721070431218,0.92436134,3401.5,3401.2,5.73907]
[1721070431426,0.61648704,3401.3,3401.2,2.94007]
[1721070431605,0.92484212,3401.4,3401.3,2.94002]
[1721070431836,0.92484212,3401.5,3401.3,2.94002]
[1721070432032,0.92484212,3401.5,3401.4,2.93996]
[1721070432253,0.92484212,3401.6,3401.4,2.93996]
[1721070432416,1.23312283,3401.7,3401.5,2.93987]
[1721070432749,0.92490887,3401.6,3401.5,2.93987]
[1721070432914,1.23312283,3401.7,3401.5,2.93987]
[1721070433425,0.92490312,3401.6,3401.5,2.93987]
[1721070433827,1.23312283,3401.6,3401.3,2.93998]
[1721070434024,1.54137444,3401.7,3401.3,2.93998]
[1721070434025,0.92496235,3401.4,3401.3,2.93998]
[1721070434870,0.92496235,3401.4,3401.1,2.94017]
[1721070435150,0.92496235,3401.3,3401.1,2.94017]
[1721070435352,0.92496235,3401.2,3401.1,2.94017]
[1721070436225,0.92496235,3401.2,3400.9,5.88067]
[1721070436433,0.61659179,3401.0,3400.5,2.94069]
[1721070436632,0.61652044,3400.7,3400.5,2.94074]
[1721070436852,0.92496235,3400.8,3400.5,2.94074]
[1721070436853,0.61652044,3400.6,3400.5,2.94074]
[1721070437440,0.61652044,3400.6,3400.3,2.94085]
[1721070437654,0.61652044,3400.5,3400.3,5.88169]
[1721070437876,0.92496235,3400.7,3400.3,5.88169]
[1721070437877,0.61652044,3400.6,3400.3,2.94084]
[1721070438096,0.61652044,3400.6,3400.5,8.15848]
[1721070438228,0.61652044,3400.9,3400.8,2.94048]
[1721070438576,1.23312283,3401.2,3400.9,2.94039]
[1721070438577,0.61652044,3401.0,3400.9,2.94039]
[1721070438921,0.92496235,3401.0,3400.9,2.94039]
[1721070440057,0.61602245,3401.0,3400.9,2.94039]
[1721070440221,0.92496235,3401.1,3400.9,2.94039]
[1721070440424,0.61602365,3401.0,3400.9,2.94039]
[1721070441222,0.61602365,3401.0,3400.7,2.9405]
[1721070441439,0.61592736,3400.8,3400.7,2.9405]
[1721070441871,0.61592736,3400.9,3400.7,2.94057]
[1721070442048,0.61592736,3401.1,3400.9,2.94038]
[1721070442262,0.61592736,3401.1,3401.0,2.94031]
[1721070442455,0.61592736,3401.2,3401.0,2.94031]
[1721070443235,0.61592736,3401.3,3401.2,2.94013]
[1721070443428,0.61592736,3401.4,3401.2,5.88019]
[1721070443873,0.61592736,3401.4,3401.2,2.94006]
[1721070444074,0.61592736,3401.5,3401.2,2.94006]
[1721070444442,0.92496235,3401.7,3401.2,2.94006]
[1721070444443,2.2619,3401.8,3401.2,2.94006]
[1721070444649,0.61557374,3401.6,3401.2,2.94006]
[1721070445179,0.98868393,3401.7,3401.2,2.94006]
[1721070445180,0.68080414,3401.5,3401.2,2.94006]
[1721070446378,0.68080414,3401.5,3401.0,2.94029]
[1721070446379,0.0652304,3401.5,3401.4,2.93996]
[1721070446574,0.61557374,3401.7,3401.4,2.93996]
[1721070446732,0.61557374,3401.8,3401.6,5.87958]
[1721070447279,0.61557374,3401.8,3401.6,2.93979]
[1721070447635,0.92336061,3401.9,3401.6,2.93979]
[1721070447636,0.61557374,3401.7,3401.6,2.93979]
[1721070448067,0.61557374,3401.8,3401.6,2.93971]
[1721070448286,0.92336061,3402.0,3401.7,5.7387]
[1721070448287,0.61557374,3402.0,3401.7,5.7387]
[1721070448439,1.53901826,3402.5,3401.9,2.93946]
[1721070448440,0.61557374,3402.1,3401.9,2.93946]
[1721070448636,0.61557374,3402.2,3401.9,2.93946]
[1721070449683,0.61557374,3402.3,3401.7,2.799]
[1721070449987,0.61557374,3402.3,3402.2,2.93927]
[1721070450287,0.92336061,3402.5,3402.1,2.93932]
[1721070450288,0.61557374,3402.4,3402.3,2.93918]
[1721070450840,9.6615,3402.7,3402.3,2.93918]
[1721070451153,9.6615,3402.7,3402.1,2.93929]
[1721070451154,0.92321397,3402.5,3402.1,2.93929]
[1721070451466,0.61548626,3402.2,3402.1,2.93929]
[1721070451657,0.61548626,3402.3,3401.6,2.93972]
[1721070451845,0.61548626,3402.2,3401.8,2.93955]
[1721070452062,0.61548626,3402.1,3401.9,2.93953]
[1721070452377,0.06587504,3402.0,3401.9,2.93953]
[1721070452676,0.61548626,3402.1,3401.9,2.93953]
[1721070452850,0.61548626,3402.1,3402.0,2.93944]
[1721070453046,0.92321397,3402.3,3402.0,2.93944]
[1721070453047,0.61548626,3402.3,3402.0,2.93944]
[1721070453252,0.61548626,3402.2,3401.9,2.93953]
[1721070453473,0.61548626,3402.1,3401.9,2.93953]
[1721070454210,0.61548626,3402.1,3402.0,2.93944]
[1721070454337,0.61556694,3402.2,3402.0,2.93944]
[1721070455162,0.61556694,3402.1,3401.8,2.93955]
[1721070455345,0.61556694,3402.1,3401.9,2.93949]
[1721070455780,0.0658715,3402.0,3401.9,2.93949]
[1721070456076,0.0658715,3402.0,3401.7,2.93967]
[1721070456077,0.0658715,3402.0,3401.7,2.93964]
[1721070456582,0.0658715,3402.0,3401.7,2.93963]
[1721070456784,0.0658715,3402.0,3401.9,2.93953]
[1721070459188,3.90067808,3402.7,3402.2,2.93927]
[1721070459189,0.61556694,3402.5,3402.2,2.93927]
[1721070459493,0.61556694,3402.5,3401.9,5.37743]
[1721070459494,0.61556694,3402.7,3402.5,2.93895]
[1721070460098,0.61556694,3402.6,3402.4,2.9391]
[1721070460255,0.61552361,3402.5,3402.4,2.9391]
[1721070460454,1.23113389,3402.8,3402.4,2.9391]
[1721070460455,0.92335041,3402.6,3402.4,2.9391]
[1721070460693,12.73022,3403.2,3402.4,2.9391]
[1721070460991,0.61553883,3402.6,3402.4,2.9391]
[1721070461150,0.61551052,3402.6,3402.5,2.93901]
[1721070461349,0.61551052,3402.7,3402.5,2.93901]
[1721070461550,0.61551052,3402.7,3402.6,2.93892]
[1721070461787,1.23102104,3403.0,3402.6,5.87777]
[1721070461788,0.61551052,3402.8,3402.6,5.87777]
[1721070462187,0.61551052,3402.7,3402.4,2.93905]
[1721070462354,0.61551052,3402.6,3402.4,5.87808]
[1721070462690,0.61546556,3402.6,3402.5,2.93901]
[1721070463192,0.68208739,3402.6,3402.5,2.93901]
[1721070464452,0.06662183,3402.6,3402.5,2.93901]
[1721070465760,0.68208739,3402.6,3402.5,2.93901]
[1721070466291,0.06662183,3402.6,3402.5,2.93901]
[1721070466692,0.68208739,3402.6,3402.5,2.93901]
[1721070467153,0.68208739,3402.6,3402.2,2.93922]
[1721070467357,0.61546556,3402.5,3402.2,2.93922]
[1721070467661,0.06658357,3402.4,3402.3,2.93915]
[1721070468029,0.06658357,3402.4,3402.3,5.87833]
[1721070468489,0.61546556,3402.8,3402.5,2.93894]
[1721070468883,0.61546556,3402.8,3402.6,2.93891]
[1721070469278,0.61546556,3402.9,3402.6,2.93891]
[1721070469592,0.61546556,3402.9,3402.4,2.93902]
[1721070469593,0.61546556,3402.7,3402.4,2.93902]
[1721070469809,0.61546556,3402.7,3402.5,2.939]
[1721070469959,0.61546556,3402.7,3402.5,2.93894]
[1721070470469,0.61546556,3402.7,3402.3,2.93914]
[1721070470470,0.61498353,3402.7,3402.2,2.93926]
[1721070470682,0.61498353,3402.5,3402.3,2.9391]
[1721070471199,0.0664754,3402.4,3402.3,2.9391]
[1721070471562,0.61498353,3402.6,3402.3,2.9391]
[1721070471896,0.61498353,3402.7,3402.4,2.93908]
[1721070472507,0.61498353,3402.6,3402.4,2.93908]
[1721070472859,0.61498353,3402.7,3402.4,2.93908]
[1721070473368,0.61498353,3402.8,3402.6,2.93892]
[1721070474586,0.61498353,3402.9,3402.6,2.93892]
[1721070476810,0.61498353,3402.8,3402.6,2.93892]
[1721070477002,0.61474402,3402.7,3402.6,2.93892]
[1721070477769,0.61474402,3402.7,3402.4,2.93904]
[1721070477965,0.61474402,3402.7,3402.2,2.93924]
[1721070477966,0.61474402,3402.6,3402.2,2.93924]
[1721070478165,0.61474402,3402.5,3402.0,2.93938]
[1721070478479,0.61474402,3402.4,3402.0,2.93938]
[1721070478902,0.61474402,3402.5,3402.0,2.93938]
[1721070479086,0.61474402,3402.5,3402.0,5.87876]
[1721070479273,0.61474402,3402.4,3402.0,5.87876]
[1721070479474,0.61474402,3402.5,3402.0,5.87876]
[1721070479664,0.61474402,3402.4,3402.0,5.87876]
[1721070479872,0.61474402,3402.5,3402.0,5.87876]
[1721070480263,0.61483053,3402.4,3402.1,2.93935]
[1721070480795,0.61484574,3402.4,3402.1,2.93935]
[1721070482680,0.61484574,3402.3,3402.1,2.93935]
[1721070483315,0.61484574,3402.3,3401.7,2.799]
[1721070483602,0.61484574,3402.3,3401.3,2.799]
[1721070483603,0.61484574,3402.0,3401.3,2.799]
[1721070483805,0.61484574,3402.0,3401.8,2.93956]
[1721070484316,0.61484574,3401.9,3401.8,2.93956]
[1721070484701,0.61484574,3402.0,3401.9,2.93953]
[1721070484877,0.61484574,3402.2,3402.1,2.93936]
[1721070485572,0.92226862,3402.2,3402.1,2.93936]
[1721070485965,0.61553133,3402.2,3402.1,2.93936]
[1721070486600,0.92329699,3402.3,3402.1,2.93936]
[1721070486967,0.92329699,3402.2,3402.1,2.93936]
[1721070487574,1.23106266,3402.2,3402.1,2.93936]
[1721070487993,1.23106266,3402.2,3401.9,5.87898]
[1721070488199,0.9240388,3402.1,3402.0,2.93936]
[1721070488399,1.23106266,3402.2,3402.1,2.93936]
[1721070488620,1.23106266,3402.3,3402.1,2.93936]
[1721070488768,1.23106266,3402.2,3402.1,2.93936]
[1721070489400,1.23106266,3402.2,3401.9,2.93945]
[1721070489587,1.23281673,3402.1,3402.0,2.93944]
[1721070489988,1.51015249,3402.1,3401.3,2.799]
[1721070490307,1.51015249,3402.1,3401.2,2.94006]
[1721070490308,0.61641759,3401.4,3401.2,2.94006]
[1721070490510,0.92462638,3401.4,3401.0,2.94024]
[1721070490710,0.61657577,3401.1,3401.0,2.94024]
[1721070491237,0.92462638,3401.3,3401.1,2.94022]
[1721070491605,0.92462638,3401.2,3401.1,2.94022]
[1721070491786,3.58783518,3401.4,3400.9,2.94038]
[1721070491787,1.23283518,3401.3,3400.9,2.94038]
[1721070491983,0.92479155,3401.0,3400.9,2.94038]
[1721070492188,0.92479155,3401.0,3400.5,5.73969]
[1721070492411,0.92479155,3401.0,3400.5,2.94069]
[1721070492412,0.61657113,3400.7,3400.5,2.94069]
[1721070492634,0.61657113,3400.7,3400.6,2.94065]
[1721070492803,0.61657113,3400.9,3400.6,2.94065]
[1721070492998,0.61657113,3401.0,3400.8,2.94048]
[1721070493310,0.61657113,3400.9,3400.8,2.94048]
[1721070493511,0.61657113,3400.9,3400.8,5.88096]
[1721070494028,0.61585895,3400.9,3400.8,2.94048]
[1721070494340,1.23283518,3401.3,3400.9,2.94039]
[1721070494341,0.61585895,3401.0,3400.9,2.94039]
[1721070495202,0.61585895,3401.1,3401.0,2.94031]
[1721070495433,2.355,3401.4,3401.0,2.94031]
[1721070495733,2.355,3401.4,3400.9,2.94039]
[1721070495734,0.92304925,3401.2,3401.1,2.94022]
[1721070495919,0.61529647,3401.3,3401.1,2.94022]
[1721070496617,0.61529647,3401.4,3401.1,2.94022]
[1721070496818,0.61529647,3401.3,3401.1,2.94022]
[1721070497407,0.61529647,3401.2,3401.1,2.94022]
[1721070497826,0.61529647,3401.2,3400.9,2.94032]
[1721070498214,0.61529647,3401.2,3401.0,2.94029]
[1721070498411,0.61529647,3401.3,3401.0,2.94029]
[1721070500126,0.61529647,3401.3,3401.1,2.94022]
[1721070500301,0.61529647,3401.3,3400.9,2.94032]
[1721070500942,2.4494,3401.2,3400.7,5.88101]
[1721070501141,2.4494,3401.2,3400.7,2.94049]
[1721070501447,0.61529647,3401.1,3400.7,2.94049]
[1721070501611,2.4494,3401.2,3400.7,2.94049]
[1721070501612,0.61529647,3401.0,3400.7,2.94049]
[1721070501948,0.61529647,3401.1,3400.7,2.94049]
[1721070502253,3.37244925,3401.2,3400.7,2.94049]
[1721070502254,2.4494,3401.2,3400.7,2.94049]
[1721070502433,0.92304925,3401.4,3400.9,2.94038]
[1721070502434,0.61529647,3401.4,3400.9,2.94038]
[1721070503708,0.61529647,3401.3,3400.9,2.94038]
[1721070503909,0.61529647,3401.3,3400.9,5.88072]
[1721070504109,0.61529647,3401.4,3400.9,5.88072]
[1721070504407,3.06469647,3401.5,3401.1,2.94021]
[1721070505039,0.61529647,3401.4,3401.1,2.94021]
[1721070505648,0.61529647,3401.4,3400.1,2.3931]
[1721070505649,0.6729756,3401.3,3399.4,0.50879524]
[1721070505955,0.6729756,3401.3,3400.2,2.94097]
[1721070505956,2.4679,3400.7,3400.2,2.94097]
[1721070506157,2.4679,3400.7,3400.3,2.94091]
[1721070506330,2.4679,3400.7,3400.4,2.9408]
[1721070506530,0.61529647,3400.9,3400.4,2.9408]
[1721070507064,3.08319647,3401.0,3400.6,2.94064]
[1721070508057,0.61529647,3401.2,3400.6,2.94064]
[1721070508258,0.61529647,3401.1,3400.6,2.94064]
[1721070508557,0.6135842,3401.1,3400.6,2.94064]
[1721070509555,0.6135842,3401.0,3400.4,2.9408]
[1721070509719,0.6135842,3400.9,3400.4,2.9408]
[1721070509926,0.6135842,3400.9,3400.5,2.94073]
[1721070510120,0.6135842,3401.0,3400.6,2.94063]
[1721070510436,0.6135842,3401.1,3400.6,2.94063]
[1721070510770,0.6135842,3401.0,3400.4,5.88155]
[1721070510942,0.6135842,3400.9,3400.5,2.94073]
[1721070512074,2.94024,3401.1,3400.5,2.94073]
[1721070512224,0.61347437,3400.9,3400.5,2.94073]
[1721070512420,0.61344642,3401.0,3400.5,2.94073]
[1721070512739,4.4235102,3401.1,3400.5,2.94073]
[1721070513177,0.61344642,3401.0,3400.6,2.94065]
[1721070513384,0.61344642,3401.2,3400.6,2.94065]
[1721070513552,0.61344642,3401.2,3400.8,2.94047]
[1721070513874,2.2961,3401.3,3400.8,2.94047]
[1721070514080,2.90954642,3401.3,3400.8,2.94047]
[1721070514280,2.2961,3401.3,3400.8,2.94047]
[1721070514584,2.90947804,3401.3,3400.8,2.94047]
[1721070514784,2.2961,3401.3,3400.8,2.94047]
[1721070515090,2.2961,3401.3,3400.9,2.94037]
[1721070515440,0.61337804,3401.4,3400.9,2.94037]
[1721070515662,0.61337804,3401.5,3401.0,2.9403]
[1721070515945,2.87267804,3401.6,3401.0,2.9403]
[1721070516476,2.87267804,3401.6,3401.1,2.9402]
[1721070516477,2.2593,3401.6,3401.1,2.9402]
[1721070516786,0.61337804,3401.8,3401.2,2.94012]
[1721070516956,0.61337804,3401.7,3401.4,2.9399]
[1721070517156,0.61337804,3401.8,3401.4,2.9399]
[1721070517378,0.61337804,3401.9,3401.4,2.9399]
[1721070517888,0.61337804,3401.9,3401.5,2.93987]
[1721070518175,0.61337804,3402.0,3401.5,2.93987]
[1721070518342,0.61389102,3401.9,3401.5,2.93987]
[1721070518547,0.61389102,3401.8,3401.5,2.93987]
[1721070518784,0.61389102,3401.8,3401.0,2.3736]
[1721070518989,0.92083654,3401.9,3401.5,2.93986]
[1721070518990,0.61389102,3401.9,3401.5,2.93986]
[1721070519159,0.61389102,3402.0,3401.5,2.93986]
[1721070519487,0.61389102,3401.9,3401.5,2.93986]
[1721070520185,0.61389102,3401.8,3401.5,2.93986]
[1721070520489,0.61389102,3401.9,3401.6,2.93972]
[1721070520642,0.61389102,3402.0,3401.8,2.93962]
[1721070521479,0.61389102,3402.0,3401.7,2.93969]
[1721070521782,0.61461987,3401.9,3401.7,2.93969]
[1721070521981,0.61461987,3401.8,3401.5,2.9398]
[1721070522295,0.61461987,3401.8,3401.4,2.93993]
[1721070522451,0.61461987,3401.6,3401.1,2.94016]
[1721070522796,1.19850875,3401.8,3401.3,2.93998]
[1721070522797,0.61461987,3401.5,3401.3,2.93998]
[1721070522944,0.92192981,3401.7,3401.4,2.93996]
[1721070522945,0.61461987,3401.6,3401.4,2.93996]
[1721070525048,0.61461987,3401.6,3401.5,2.93987]
[1721070525478,0.92192981,3401.7,3401.5,2.93987]
[1721070525853,0.92192981,3401.6,3401.5,2.93987]
[1721070526666,0.61517076,3401.6,3401.5,2.93987]
[1721070527095,0.92192981,3401.8,3401.6,2.93979]
[1721070527096,0.61517076,3401.7,3401.6,2.93979]
[1721070527277,0.92192981,3401.8,3401.7,2.9397]
[1721070527278,0.61517076,3401.8,3401.7,2.9397]
[1721070527590,0.61517076,3401.8,3401.4,2.4138]
[1721070527591,0.61517076,3401.9,3401.8,5.87924]
[1721070527798,0.92192981,3402.1,3402.0,2.93944]
[1721070527799,0.61517076,3402.1,3402.0,2.93944]
[1721070527949,2.4196,3402.8,3402.1,2.93936]
[1721070528158,0.6153079,3402.2,3402.1,2.93936]
[1721070528658,0.6153079,3402.2,3402.1,5.87872]
[1721070529011,1.53826977,3402.7,3402.3,2.93918]
[1721070529012,0.6151866,3402.4,3402.3,2.93918]
[1721070529298,0.6151866,3402.5,3402.4,2.9391]
[1721070530173,0.61509736,3402.5,3402.4,2.9391]
[1721070530504,0.92296186,3402.6,3402.4,2.9391]
[1721070531805,0.92243351,3402.6,3402.4,2.9391]
[1721070531967,0.06404554,3402.5,3402.4,2.9391]
[1721070532700,0.06404554,3402.5,3402.2,2.93927]
[1721070532701,0.98647905,3402.5,3402.2,2.93927]
[1721070532904,0.92243351,3402.4,3402.2,2.93927]
[1721070533210,0.67891736,3402.3,3402.2,2.93927]
[1721070533362,0.67894653,3402.3,3402.2,2.93927]
[1721070533700,0.06395272,3402.3,3402.2,2.93927]
[1721070535062,0.67894653,3402.3,3402.2,2.93927]
[1721070536199,0.67894653,3402.3,3402.1,2.93934]
[1721070536585,0.67894653,3402.3,3401.8,2.93961]
[1721070536586,0.61499381,3402.2,3401.8,2.93961]
[1721070536791,0.67884891,3402.1,3401.8,2.93961]
[1721070537106,0.61499381,3401.9,3401.8,2.93961]
[1721070537306,0.61499381,3402.0,3401.8,2.93961]
[1721070537608,0.67874964,3401.9,3401.8,2.93961]
[1721070538073,0.06375583,3401.9,3401.8,2.93961]
[1721070538859,0.67874964,3401.9,3401.8,2.93961]
[1721070539294,0.06375583,3401.9,3401.8,2.93961]
[1721070540467,0.06375583,3401.9,3401.8,5.87923]
[1721070541590,0.92191054,3402.4,3402.2,2.93927]
[1721070541796,0.06381377,3402.3,3402.2,2.93927]
[1721070542120,0.98572431,3402.3,3402.2,2.93927]
[1721070542280,0.67836598,3402.3,3402.2,2.93927]
[1721070542608,0.67838503,3402.3,3402.2,2.93927]
[1721070543162,0.06381377,3402.3,3402.2,5.87854]
[1721070544097,0.92205417,3402.9,3402.2,14.61681]
[1721070544300,0.92191054,3403.2,3402.8,2.93875]
[1721070544301,0.61457126,3403.2,3402.8,2.93875]
[1721070544689,0.61457126,3403.2,3402.9,0.05876742]
[1721070544902,0.61457126,3403.3,3403.0,2.93858]
[1721070545688,0.92191054,3403.4,3403.0,2.93858]
[1721070545689,0.61457126,3403.4,3403.0,2.93858]
[1721070546195,0.61457126,3403.3,3403.0,2.93858]
[1721070546504,2.93799,3403.7,3403.0,2.93858]
[1721070546703,0.61406935,3403.4,3403.0,2.93858]
[1721070546948,0.61406935,3403.5,3403.2,2.9384]
[1721070547493,0.61406935,3403.6,3403.2,2.9384]
[1721070548108,0.61406935,3403.5,3403.2,2.9384]
[1721070548317,0.67698234,3403.5,3403.2,2.9384]
[1721070549606,0.06291299,3403.5,3403.2,2.9384]
[1721070549824,0.06291299,3403.5,3403.0,2.93858]
[1721070549825,1.32969771,3403.7,3403.0,2.93858]
[1721070549969,0.0607215,3403.4,3403.0,2.93858]
[1721070550312,0.06067511,3403.3,3403.1,2.93848]
[1721070550497,0.61406935,3403.5,3403.1,2.93848]